fUST/lending_fUST_20240127
["ID","MTS","AMOUNT","RATE_DAILY","PERIOD"]
[312852416,1706361038642,-272.585389,0.00030137,2]
[312852417,1706361038651,-158.81503,0.00030137,2]
[312852418,1706361038661,-176.26792488,0.00030233,2]
[312852419,1706361038670,-272.585389,0.00031115,2]
[312852420,1706361038680,-77365.87930664,0.0003143,2]
[312852421,1706361038689,-620.00024308,0.0003158,2]
[312852422,1706361038701,-158.81503,0.00031703,2]
[312852423,1706361038710,-151.0,0.00031953,2]
[312852424,1706361038719,-39131.00414303,0.00032,15]
[312852425,1706361038728,-3138.37234854,0.00032,2]
[312852426,1706361038737,-897.97777174,0.00032,7]
[312852427,1706361038747,-245.548314,0.00032,5]
[312852428,1706361038757,-272.585389,0.00032094,2]
[312852429,1706361038766,-151.0,0.00032476,2]
[312852430,1706361038775,-2381.55591671,0.00033,2]
[312852431,1706361038784,-304.86419737,0.00033,3]
[312852432,1706361038793,-228.50754628,0.00033,2]
[312852433,1706361038803,-22355.32655684,0.00033,5]
[312852434,1706361038812,-151.0,0.00033,2]
[312852435,1706361038821,-621.12962092,0.00033072,2]
[312852436,1706361038830,-272.585389,0.00033072,2]
[312852437,1706361038840,-158.81503,0.00033268,2]
[312852438,1706361038849,-300.0,0.000334,17]
[312852439,1706361038858,-151.0,0.00033524,2]
[312852440,1706361038867,-151.0,0.00034047,2]
[312852441,1706361038876,-272.585389,0.00034051,2]
[312852442,1706361038885,-5000.0,0.00034172,7]
[312852443,1706361038894,-151.0,0.00034571,2]
[312852444,1706361038904,-158.81503,0.00034834,2]
[312852445,1706361038923,-300.0,0.000349,17]
[312852446,1706361038933,-176.26792488,0.000349,2]
[312852447,1706361038942,-3476.12,0.00034999,2]
[312852448,1706361038952,-3476.12,0.00034999,2]
[312852449,1706361038961,-3476.12,0.00034999,2]
[312852450,1706361038970,-3476.12,0.00034999,2]
[312852451,1706361038979,-3476.12,0.00034999,2]
[312852452,1706361038988,-3476.12,0.00034999,2]
[312852453,1706361038998,-3476.12,0.00034999,2]
[312852454,1706361039007,-3476.12,0.00034999,2]
[312852455,1706361039016,-3476.12,0.00034999,2]
[312852456,1706361039026,-3476.12,0.00034999,2]
[312852457,1706361039035,-500.0,0.00034999,10]
[312852458,1706361039044,-500.0,0.00034999,10]
[312852459,1706361039053,-500.0,0.00034999,10]
[312852460,1706361039062,-172.73238116,0.00034999,10]
[312852461,1706361039072,-335.28077481,0.00034999,10]
[312852462,1706361039148,-500.0,0.00034999,10]
[312852463,1706361039157,-500.0,0.00034999,10]
[312852464,1706361039167,-500.0,0.00034999,10]
[312852465,1706361039176,-158.06765206,0.00034999,10]
[312852466,1706361039186,-500.0,0.00034999,10]
[312852467,1706361039194,-500.0,0.00034999,10]
[312852468,1706361039203,-500.0,0.00034999,10]
[312852469,1706361039212,-500.0,0.00034999,10]
[312852470,1706361039224,-500.0,0.00034999,10]
[312852471,1706361039233,-500.0,0.00034999,10]
[312852472,1706361039242,-500.0,0.00034999,10]
[312852473,1706361039251,-500.0,0.00034999,10]
[312852474,1706361039259,-500.0,0.00034999,10]
[312852475,1706361039269,-500.0,0.00034999,10]
[312852476,1706361039278,-451.13072995,0.00034999,10]
[312852477,1706361039287,-500.0,0.00034999,10]
[312852478,1706361039296,-500.0,0.00034999,10]
[312852479,1706361039305,-500.0,0.00034999,10]
[312852480,1706361039315,-500.0,0.00034999,10]
[312852481,1706361039324,-500.0,0.00034999,10]
[312852482,1706361039333,-500.0,0.00034999,10]
[312852483,1706361039342,-500.0,0.00034999,10]
[312852484,1706361039352,-500.0,0.00034999,10]
[312852485,1706361039362,-500.0,0.00034999,10]
[312852486,1706361039371,-500.0,0.00034999,10]
[312852487,1706361039384,-500.0,0.00034999,10]
[312852488,1706361039393,-500.0,0.00034999,10]
[312852489,1706361039402,-574.83531078,0.00034999,10]
[312852490,1706361039411,-500.0,0.00034999,10]
[312852491,1706361039422,-500.0,0.00034999,10]
[312852492,1706361039432,-500.0,0.00034999,10]
[312852493,1706361039441,-500.0,0.00034999,10]
[312852494,1706361039452,-500.0,0.00034999,10]
[312852495,1706361039462,-500.0,0.00034999,10]
[312852496,1706361039471,-500.0,0.00034999,10]
[312852497,1706361039481,-500.0,0.00034999,10]
[312852498,1706361039490,-500.0,0.00034999,10]
[312852499,1706361039500,-500.0,0.00034999,10]
[312852500,1706361039509,-500.0,0.00034999,10]
[312852501,1706361039519,-500.0,0.00034999,10]
[312852502,1706361039528,-500.0,0.00034999,10]
[312852503,1706361039538,-500.0,0.00034999,10]
[312852504,1706361039548,-500.0,0.00034999,10]
[312852505,1706361039557,-500.0,0.00034999,10]
[312852506,1706361039566,-500.0,0.00034999,10]
[312852507,1706361039574,-42271.13529717,0.00035,2]
[312852508,1706361039584,-155.12190431,0.00035,6]
[312852509,1706361039592,-592.61828384,0.00035,2]
[312852510,1706361039601,-2000.0,0.00035,11]
[312852511,1706361039611,-64779.66661041,0.00035,15]
[312852512,1706361039620,-2000.0,0.0003501,11]
[312852513,1706361039629,-2000.0,0.0003502,11]
[312852514,1706361039639,-272.585389,0.00035029,2]
[312852515,1706361039648,-2000.0,0.0003503,11]
[312852516,1706361039657,-2000.0,0.0003504,11]
[312852517,1706361039666,-2000.0,0.0003505,11]
[312852518,1706361039675,-2000.0,0.0003506,12]
[312852519,1706361039685,-2000.0,0.0003507,12]
[312852520,1706361039694,-2000.0,0.0003508,12]
[312852521,1706361039705,-2000.0,0.0003509,12]
[312852522,1706361039714,-151.0,0.00035095,4]
[312852523,1706361039724,-2000.0,0.000351,12]
[312852524,1706361039734,-2000.0,0.0003511,12]
[312852525,1706361039745,-2000.0,0.0003512,12]
[312852526,1706361039755,-2000.0,0.0003513,12]
[312852527,1706361039764,-2000.0,0.0003514,12]
[312852528,1706361039773,-2000.0,0.0003515,12]
[312852529,1706361039782,-2000.0,0.0003516,12]
[312852530,1706361039798,-3482.948512,0.0003517,12]
[312852531,1706361039813,-50000.0,0.00035505,7]
[312852533,1706361039828,-2846.01281752,0.0003557,2]
[312852534,1706361039840,-928.3830043,0.0003557,2]
[312852535,1706361039856,-278.51490129,0.0003557,2]
[312852536,1706361039870,-223.8890335,0.0003557,2]
[312852538,1706361039886,-1937.904787,0.00035616,120]
[312852539,1706361039900,-151.0,0.00035618,4]
[312852540,1706361039912,-500.0,0.0003562,3]
[312852541,1706361039926,-500.0,0.0003562,3]
[312852542,1706361039941,-500.0,0.0003564,3]
[312852543,1706361039954,-500.0,0.0003564,3]
[312852544,1706361039968,-500.0,0.0003566,3]
[312852546,1706361039980,-500.0,0.0003566,3]
[312852547,1706361039993,-500.0,0.0003568,3]
[312852548,1706361040007,-500.0,0.0003568,3]
[312852549,1706361040021,-177.54501,0.00035684,2]
[312852550,1706361040034,-213.494709,0.00035684,2]
[312852553,1706361040048,-285.44834,0.00035684,2]
[312852554,1706361040060,-500.0,0.000357,3]
[312852555,1706361040074,-500.0,0.000357,3]
[312852556,1706361040089,-500.0,0.0003572,3]
[312852557,1706361040104,-500.0,0.0003572,3]
[312852558,1706361040114,-500.0,0.0003574,3]
[312852559,1706361040125,-500.0,0.0003574,3]
[312852560,1706361040137,-500.0,0.0003576,3]
[312852561,1706361040150,-500.0,0.0003576,3]
[312852562,1706361040162,-500.0,0.0003578,3]
[312852563,1706361040174,-500.0,0.0003578,3]
[312852564,1706361040185,-500.0,0.000358,3]
[312852565,1706361040197,-500.0,0.000358,3]
[312852566,1706361040210,-500.0,0.0003582,3]
[312852567,1706361040223,-500.0,0.0003582,3]
[312852568,1706361040236,-500.0,0.0003584,3]
[312852569,1706361040247,-500.0,0.0003584,3]
[312852570,1706361040261,-500.0,0.0003586,3]
[312852571,1706361040273,-500.0,0.0003586,3]
[312852572,1706361040285,-150.70062205,0.00035869,2]
[312852573,1706361040297,-500.0,0.0003588,3]
[312852574,1706361040310,-500.0,0.0003588,3]
[312852575,1706361040324,-193384.60505667,0.000359,2]
[312852576,1706361040343,-10202.84952288,0.000359,2]
[312852577,1706361040936,-983.27610198,0.00018672,2]
[312852578,1706361040950,-10481.55694857,0.00018672,2]
[312852610,1706361075849,7765.67871478,0.00016,2]
[312852613,1706361228017,200.0,0.00027498,15]
[312852614,1706361279538,155.02015262,0.00020998,4]
[312852615,1706361296012,155.02015262,0.00020698,4]
[312852616,1706361314031,155.02015262,0.00020698,4]
[312852617,1706361334014,155.02015262,0.00020698,4]
[312852618,1706361354523,155.02015262,0.00020698,4]
[312852619,1706361372644,155.01860223,0.00020698,4]
[312852620,1706361394560,155.01860223,0.00020698,4]
[312852621,1706361417020,155.01860223,0.00020698,4]
[312852622,1706361437041,155.01860223,0.00020698,4]
[312852623,1706361514048,155.01860223,0.00020691,4]
[312852624,1706361591565,155.01860223,0.00020688,4]
[312852625,1706361607563,155.01860223,0.00020698,4]
[312852626,1706361623583,155.01860223,0.00020698,4]
[312852627,1706361642105,155.01860223,0.00020698,4]
[312852628,1706361660072,155.01860223,0.00020698,4]
[312852629,1706361682079,155.01860223,0.00020698,4]
[312852630,1706361700582,155.01860223,0.00020698,4]
[312852631,1706361720589,155.01860223,0.00020698,4]
[312852632,1706361738695,155.02015262,0.00020698,4]
[312852633,1706361818094,155.02015262,0.00020681,4]
[312852634,1706361901122,155.01860223,0.00020677,4]
[312852635,1706361913119,155.01860223,0.00020698,4]
[312852636,1706361931116,155.01860223,0.00020698,4]
[312852751,1706361953613,155.02015262,0.00020698,4]
[312852757,1706361969626,155.02015262,0.00020698,4]
[312852758,1706361993621,155.01860223,0.00020698,4]
[312852759,1706362011623,155.01860223,0.00020698,4]
[312852760,1706362029627,155.01860223,0.00020698,4]
[312852770,1706362050159,155.01860223,0.00020698,4]
[312852774,1706362074132,155.01860223,0.00020698,4]
[312852775,1706362090248,155.01860223,0.00020698,4]
[312852776,1706362110386,155.01860223,0.00020698,4]
[312852777,1706362130648,155.01860223,0.00020698,4]
[312852778,1706362154642,155.01860223,0.00020698,4]
[312852779,1706362179134,155.01860223,0.00020698,4]
[312853031,1706362199165,155.01860223,0.00020698,4]
[312853032,1706362215159,155.01860223,0.00020698,4]
[312853051,1706362231859,-521.0,0.00020657,2]
[312853052,1706362231869,-155.01860223,0.00020658,2]
[312853053,1706362231878,-155.01860223,0.00020659,2]
[312853054,1706362231887,-1327.42997044,0.00020659,2]
[312853055,1706362231896,-1199.09633829,0.0002066,2]
[312853056,1706362231906,-684.72334781,0.00020691,2]
[312853057,1706362231916,-1616.5916667,0.00020698,2]
[312853058,1706362235153,155.01860223,0.00020698,4]
[312853067,1706362238070,-468.81284076,0.00020698,2]
[312853068,1706362238079,-155.29498657,0.00020698,2]
[312853069,1706362238088,-214.6030991,0.00020698,2]
[312853070,1706362238098,-300.0,0.00020698,2]
[312853071,1706362238107,-1289.41713019,0.00020698,2]
[312853072,1706362238116,-987.92675558,0.00021,2]
[312853073,1706362238127,-166.666666,0.00021918,2]
[312853074,1706362238136,-327.61566675,0.0002243,2]
[312853075,1706362238145,-166.666666,0.00022431,2]
[312853076,1706362238154,-166.666666,0.00022944,2]
[312853077,1706362238163,-89.79084258,0.00022998,2]
[312853078,1706362238174,-453.22118573,0.00022998,2]
[312853079,1706362238185,-1468.25035451,0.00022998,2]
[312853080,1706362238194,-166.77795994,0.00022998,2]
[312853081,1706362238204,-155.28878172,0.00022998,2]
[312853082,1706362238213,-2105.3133158,0.00022998,2]
[312853083,1706362238222,-721.83834146,0.00022998,2]
[312853084,1706362238232,-161.43229306,0.00022998,2]
[312853085,1706362238241,-196.88383111,0.00022998,2]
[312853086,1706362238250,-225.6972297,0.00022999,2]
[312853087,1706362238259,-1419.08911956,0.00023,2]
[312853088,1706362238268,-9363.3572825,0.00023,2]
[312853089,1706362238279,-584.56451826,0.00023,2]
[312853090,1706362238288,-166.666666,0.00023456,2]
[312853091,1706362238297,-817.4936223,0.00023747,2]
[312853092,1706362238306,-169.193814,0.00023904,2]
[312853093,1706362238315,-2009.31889645,0.00023948,2]
[312853094,1706362238324,-166.666666,0.00023969,2]
[312853095,1706362238333,-1189.57658954,0.00023998,2]
[312853096,1706362238342,-4017.99473219,0.00024,2]
[312853097,1706362238351,-166.666666,0.00024482,2]
[312853098,1706362238360,-4727.98807036,0.00025,2]
[312853099,1706362238369,-303.74433034,0.00027498,2]
[312853100,1706362238379,-764.75702273,0.00027498,2]
[312853101,1706362238388,-1000.0,0.00029,2]
[312853102,1706362238397,-2942.64,0.00029547,3]
[312853103,1706362238407,-5066.15,0.00029547,3]
[312853104,1706362238415,-4221.79,0.00029547,3]
[312853105,1706362238424,-26622.08022289,0.00029557,3]
[312853106,1706362238434,-11454.52177626,0.00029557,2]
[312853107,1706362238444,-3099.280784,0.00029557,4]
[312853108,1706362238453,-5000.0,0.00029557,5]
[312853109,1706362238462,-20321.3414002,0.00029557,4]
[312853110,1706362238473,-454.90275515,0.0003,4]
[312853111,1706362238483,-218.068311,0.00030137,2]
[312853112,1706362238492,-158.81503,0.00030137,2]
[312853113,1706362238502,-621.07323102,0.00030344,2]
[312853114,1706362238510,-218.068311,0.00031115,2]
[312853115,1706362238519,-620.05366155,0.00031861,2]
[312853116,1706362238529,-897.97777174,0.00032,7]
[312853117,1706362238538,-218.068311,0.00032094,2]
[312853118,1706362238547,-611.94173993,0.00032308,2]
[312853119,1706362238556,-158.81503,0.00032329,2]
[312853120,1706362238565,-228.50754628,0.00033,2]
[312853121,1706362238573,-154.0,0.00033,2]
[312853122,1706362238582,-22355.32655684,0.00033,5]
[312853123,1706362238592,-218.068311,0.00033072,2]
[312853124,1706362238601,-218.068311,0.00034051,2]
[312853125,1706362238610,-158.81503,0.00034521,2]
[312853126,1706362238619,-154.0,0.00034521,2]
[312853127,1706362238628,-176.26792488,0.000349,2]
[312853128,1706362238637,-833.91643582,0.00034988,4]
[312853129,1706362238646,-263.22113503,0.00034989,4]
[312853130,1706362238655,-216.28943676,0.00034989,4]
[312853131,1706362238664,-679.3029243,0.00034998,4]
[312853132,1706362238673,-155.03875969,0.00034999,4]
[312853133,1706362238683,-64779.66661041,0.00035,15]
[312853134,1706362238692,-2000.0,0.00035,11]
[312853135,1706362238701,-155.12190431,0.00035,6]
[312853136,1706362238710,-592.61828384,0.00035,2]
[312853137,1706362238721,-2500.0,0.00035,2]
[312853138,1706362238730,-2000.0,0.0003501,11]
[312853139,1706362238739,-2000.0,0.0003502,11]
[312853140,1706362238748,-218.068311,0.00035029,2]
[312853141,1706362238757,-2000.0,0.0003503,11]
[312853142,1706362238766,-2794.066118,0.0003504,11]
[312853143,1706362238780,-150.70062205,0.000355,2]
[312853144,1706362238790,-2500.0,0.000355,2]
[312853145,1706362238799,-16964.89268876,0.00035536,2]
[312853146,1706362238808,-50000.0,0.00035538,7]
[312853147,1706362238818,-50000.0,0.00035562,7]
[312853148,1706362238827,-1112.64484535,0.0003557,2]
[312853149,1706362238836,-1522.84121453,0.0003557,2]
[312853150,1706362238845,-368.50909301,0.0003557,2]
[312853151,1706362238856,-175.0,0.0003557,2]
[312853152,1706362238866,-1937.904787,0.00035616,120]
[312853153,1706362238875,-500.0,0.0003562,3]
[312853154,1706362238884,-500.0,0.0003562,3]
[312853155,1706362238893,-500.0,0.0003564,3]
[312853156,1706362238902,-500.0,0.0003564,3]
[312853157,1706362238912,-500.0,0.0003566,3]
[312853158,1706362238922,-500.0,0.0003566,3]
[312853159,1706362238931,-500.0,0.0003568,3]
[312853160,1706362238941,-500.0,0.0003568,3]
[312853161,1706362238950,-213.494709,0.00035684,2]
[312853162,1706362238959,-285.44834,0.00035684,2]
[312853163,1706362238970,-177.54501,0.00035684,2]
[312853164,1706362238979,-500.0,0.000357,3]
[312853165,1706362238989,-500.0,0.000357,3]
[312853166,1706362238998,-500.0,0.0003572,3]
[312853167,1706362239007,-500.0,0.0003572,3]
[312853168,1706362239016,-500.0,0.0003574,3]
[312853169,1706362239025,-500.0,0.0003574,3]
[312853170,1706362239034,-500.0,0.0003576,3]
[312853171,1706362239044,-500.0,0.0003576,3]
[312853172,1706362239053,-500.0,0.0003578,3]
[312853173,1706362239061,-500.0,0.0003578,3]
[312853174,1706362239070,-347.61,0.00035799,2]
[312853175,1706362239079,-347.61,0.00035799,2]
[312853176,1706362239089,-347.61,0.00035799,2]
[312853177,1706362239098,-347.61,0.00035799,2]
[312853178,1706362239107,-347.61,0.00035799,2]
[312853179,1706362239117,-347.61,0.00035799,2]
[312853180,1706362239126,-347.61,0.00035799,2]
[312853181,1706362239135,-347.61,0.00035799,2]
[312853182,1706362239143,-347.61,0.00035799,2]
[312853183,1706362239153,-347.61,0.00035799,2]
[312853184,1706362239163,-500.0,0.00035799,10]
[312853185,1706362239172,-500.0,0.00035799,10]
[312853186,1706362239182,-500.0,0.00035799,10]
[312853187,1706362239264,-335.28077481,0.00035799,10]
[312853188,1706362239274,-500.0,0.00035799,10]
[312853189,1706362239283,-500.0,0.00035799,10]
[312853190,1706362239292,-172.73238116,0.00035799,10]
[312853191,1706362239302,-158.06765206,0.00035799,10]
[312853192,1706362239311,-500.0,0.00035799,10]
[312853193,1706362239320,-500.0,0.00035799,10]
[312853194,1706362239330,-500.0,0.00035799,10]
[312853195,1706362239339,-500.0,0.00035799,10]
[312853196,1706362239350,-500.0,0.00035799,10]
[312853197,1706362239359,-500.0,0.00035799,10]
[312853198,1706362239368,-500.0,0.00035799,10]
[312853199,1706362239378,-500.0,0.00035799,10]
[312853200,1706362239387,-500.0,0.00035799,10]
[312853201,1706362239396,-500.0,0.00035799,10]
[312853202,1706362239405,-500.0,0.00035799,10]
[312853203,1706362239414,-500.0,0.00035799,10]
[312853204,1706362239424,-500.0,0.00035799,10]
[312853205,1706362239433,-451.13072995,0.00035799,10]
[312853206,1706362239442,-500.0,0.00035799,10]
[312853207,1706362239451,-500.0,0.00035799,10]
[312853208,1706362239460,-500.0,0.00035799,10]
[312853209,1706362239470,-500.0,0.00035799,10]
[312853210,1706362239479,-500.0,0.00035799,10]
[312853211,1706362239489,-500.0,0.00035799,10]
[312853212,1706362239499,-500.0,0.00035799,10]
[312853213,1706362239508,-500.0,0.00035799,10]
[312853214,1706362239517,-500.0,0.00035799,10]
[312853215,1706362239526,-500.0,0.00035799,10]
[312853216,1706362239536,-500.0,0.00035799,10]
[312853217,1706362239545,-500.0,0.00035799,10]
[312853218,1706362239554,-500.0,0.00035799,10]
[312853219,1706362239564,-500.0,0.00035799,10]
[312853220,1706362239573,-500.0,0.00035799,10]
[312853221,1706362239583,-500.0,0.00035799,10]
[312853222,1706362239592,-500.0,0.00035799,10]
[312853223,1706362239602,-500.0,0.00035799,10]
[312853224,1706362239611,-500.0,0.00035799,10]
[312853225,1706362239620,-500.0,0.00035799,10]
[312853226,1706362239629,-500.0,0.00035799,10]
[312853227,1706362239639,-500.0,0.00035799,10]
[312853228,1706362239648,-500.0,0.00035799,10]
[312853229,1706362239657,-500.0,0.00035799,10]
[312853230,1706362239667,-500.0,0.00035799,10]
[312853231,1706362239675,-500.0,0.00035799,10]
[312853232,1706362239685,-574.83531078,0.00035799,10]
[312853233,1706362239694,-500.0,0.00035799,10]
[312853234,1706362239702,-2000.0,0.000358,2]
[312853235,1706362239711,-2034.6,0.000358,2]
[312853236,1706362239721,-177184.26527968,0.000358,2]
[312853237,1706362239734,-10202.84952288,0.000358,2]
[312853238,1706362239745,-44435.21645324,0.000358,2]
[312853241,1706362241034,-2277.89587844,0.000358,2]
[312853242,1706362241045,-500.0,0.000358,3]
[312853243,1706362241054,-500.0,0.000358,3]
[312853244,1706362241064,-500.0,0.0003582,3]
[312853245,1706362241073,-500.0,0.0003582,3]
[312853246,1706362241082,-500.0,0.0003584,3]
[312853247,1706362241092,-500.0,0.0003584,3]
[312853248,1706362241101,-500.0,0.0003586,3]
[312853249,1706362241110,-500.0,0.0003586,3]
[312853250,1706362241119,-703.16094685,0.00035872,2]
[312853251,1706362241128,-500.0,0.0003588,3]
[312853252,1706362241137,-209.92860691,0.0003588,3]
[312853288,1706362245990,-284.30857523,0.00029556,2]
[312853289,1706362245999,-61.27819546,0.00029557,5]
[312853506,1706362668243,155.01860223,0.00020681,4]
[312853507,1706362854276,155.01860223,0.0002067,4]
[312853508,1706363042832,155.01860223,0.00020655,4]
[312853510,1706363181300,155.01860223,0.00020646,4]
[312853511,1706363195336,155.01860223,0.00020056,4]
[312853512,1706363213299,155.01860223,0.00020056,4]
[312853513,1706363229301,155.01860223,0.00020056,4]
[312853514,1706363247816,155.01860223,0.00020056,4]
[312853515,1706363263802,155.01860223,0.00020056,4]
[312853516,1706363283809,155.01860223,0.00020056,4]
[312853517,1706363300313,155.01860223,0.00020056,4]
[312853520,1706363320313,155.01860223,0.00020056,4]
[312853521,1706363346814,155.01860223,0.00020056,4]
[312853522,1706363358807,155.01860223,0.00020056,4]
[312853557,1706363376815,155.01860223,0.00020056,4]
[312853587,1706363432098,-937.92643854,0.00018047,2]
[312853589,1706363432107,-521.0,0.00018047,2]
[312853591,1706363432116,-181.11768672,0.00018048,2]
[312853593,1706363432125,-155.01860223,0.00018049,3]
[312853595,1706363432157,-155.01860223,0.00020041,2]
[312853599,1706363432170,-1583.7528565,0.00020042,2]
[312853603,1706363432180,-523.34168566,0.00020042,2]
[312853607,1706363432189,-500.0,0.00020043,2]
[312853609,1706363432198,-837.19645993,0.00020054,2]
[312853614,1706363432210,-1299.23594178,0.00020054,2]
[312853617,1706363432219,-1189.57658954,0.00020055,2]
[312853621,1706363432228,-400.61546052,0.00020056,2]
[312853624,1706363432238,-1289.41713019,0.00020056,2]
[312853627,1706363432250,-25000.0,0.00020056,2]
[312853630,1706363432260,-300.0,0.00020698,2]
[312853633,1706363432269,-3485.28550011,0.00021839,2]
[312853636,1706363432278,-294.65513684,0.00022,4]
[312853638,1706363432287,-327.61566675,0.00022,2]
[312853641,1706363432296,-8917.1513344,0.00022287,2]
[312853644,1706363432305,-194.449699,0.0002237,2]
[312853647,1706363432313,-408.1017874,0.000227,2]
[312853650,1706363432323,-611.94173993,0.000232,2]
[312853652,1706363432332,-1046.85514505,0.00023948,2]
[312853655,1706363432342,-4017.99473219,0.00024,2]
[312853658,1706363432351,-4727.98807036,0.00025,2]
[312853661,1706363432361,-156.19598509,0.00025,2]
[312853664,1706363432370,-851.06760342,0.00025,2]
[312853667,1706363432379,-1828.18039739,0.00025,2]
[312853669,1706363432388,-6704.26,0.0002576,3]
[312853672,1706363432397,-4245.77,0.0002577,3]
[312853675,1706363432406,-8045.11,0.0002577,3]
[312853677,1706363432415,-263.22113503,0.00025778,2]
[312853679,1706363432425,-155.03875969,0.00025778,2]
[312853681,1706363432434,-679.3029243,0.00025778,2]
[312853683,1706363432443,-216.28943676,0.00025779,2]
[312853685,1706363432452,-302.12279675,0.0002578,2]
[312853687,1706363432462,-16964.89268876,0.0002578,2]
[312853689,1706363432472,-67741.58526308,0.00025781,2]
[312853739,1706363438094,-13514.74621352,0.00025781,2]
[312853740,1706363438104,-176.26792488,0.00026224,2]
[312853741,1706363438199,-162.289695,0.00026324,2]
[312853742,1706363438210,-290.6944281,0.00027,2]
[312853743,1706363438219,-623.01506297,0.0002728,2]
[312853744,1706363438227,-3193.56181162,0.000275,2]
[312853745,1706363438238,-200.93387921,0.000279,2]
[312853746,1706363438250,-200.93387921,0.000279,2]
[312853747,1706363438259,-556.2457431,0.00028,2]
[312853748,1706363438269,-620.15075315,0.00028644,2]
[312853749,1706363438279,-7196.06854955,0.00029,4]
[312853750,1706363438288,-1933.42796518,0.00029,2]
[312853751,1706363438297,-1000.0,0.00029,2]
[312853752,1706363438306,-1000.0,0.00029,2]
[312853753,1706363438315,-176.26792488,0.00029449,2]
[312853754,1706363438324,-4938.72180454,0.00029557,5]
[312853755,1706363438334,-764.75702273,0.00029557,2]
[312853756,1706363438343,-5586.89,0.0002966,3]
[312853757,1706363438352,-2882.65435979,0.0002967,4]
[312853758,1706363438361,-4556.68217271,0.0002967,4]
[312853759,1706363438370,-49623.63000997,0.0002967,4]
[312853760,1706363438379,-5000.0,0.0002967,5]
[312853761,1706363438388,-50000.0,0.0002967,4]
[312853762,1706363438397,-2512.042803,0.00029998,2]
[312853763,1706363438406,-454.90275515,0.0003,4]
[312853764,1706363438415,-195.57103754,0.0003,2]
[312853765,1706363438424,-254.87264804,0.0003,2]
[312853766,1706363438433,-309.90625369,0.0003,4]
[312853767,1706363438443,-620.00753766,0.00030076,2]
[312853768,1706363438453,-153.0,0.00030137,2]
[312853769,1706363438462,-153.0,0.00030137,2]
[312853770,1706363438471,-153.0,0.00030137,2]
[312853771,1706363438481,-153.0,0.00030137,2]
[312853772,1706363438490,-153.0,0.00030137,2]
[312853773,1706363438499,-199.4415769,0.00030137,2]
[312853774,1706363438508,-153.0,0.00030137,2]
[312853775,1706363438517,-153.0,0.00030137,2]
[312853776,1706363438527,-153.0,0.00030137,2]
[312853777,1706363438536,-153.0,0.00030137,2]
[312853778,1706363438545,-153.0,0.00030137,2]
[312853779,1706363438554,-199.4415769,0.00030137,2]
[312853780,1706363438563,-153.0,0.00030137,2]
[312853781,1706363438573,-153.0,0.00030137,2]
[312853782,1706363438583,-153.0,0.00030137,2]
[312853783,1706363438592,-199.4415769,0.00030137,2]
[312853784,1706363438601,-153.0,0.00030137,2]
[312853785,1706363438610,-317.486678,0.00030137,2]
[312853786,1706363438619,-199.4415769,0.00030137,2]
[312853787,1706363438628,-153.0,0.00030137,2]
[312853788,1706363438637,-153.0,0.00030137,2]
[312853789,1706363438648,-153.0,0.00030137,2]
[312853790,1706363438657,-163.551233,0.00030137,2]
[312853791,1706363438666,-158.81503,0.00030137,2]
[312853792,1706363438675,-2000.0,0.00031,2]
[312853793,1706363438685,-2000.0,0.0003101,2]
[312853794,1706363438694,-2000.0,0.0003102,2]